fUSD/lending_fUSD_20240427
["ID","MTS","AMOUNT","RATE_DAILY","PERIOD"]
[323743591,1714229440452,-503.29,0.00010958,2]
[323743592,1714229440463,-500.0,0.00010958,2]
[323743593,1714229440476,-500.0,0.00010958,2]
[323743594,1714229440488,-528.76184652,0.00010958,2]
[323743595,1714229440500,-253.22,0.00010958,2]
[323743596,1714229440514,-500.0,0.00010958,2]
[323743597,1714229440526,-500.0,0.00010958,2]
[323743598,1714229440538,-1190.49,0.00010958,2]
[323743599,1714229440550,-202.89787963,0.00010958,2]
[323743600,1714229440563,-500.0,0.00010958,2]
[323743601,1714229440576,-1273.51,0.00010958,2]
[323743602,1714229440588,-500.0,0.00010958,2]
[323743603,1714229440600,-170.04,0.00010958,2]
[323743604,1714229440612,-500.0,0.00010958,2]
[323743605,1714229440624,-500.0,0.00010958,2]
[323743606,1714229440637,-507.07688533,0.00010958,2]
[323743607,1714229440648,-500.0,0.00010958,2]
[323743608,1714229440660,-521.19175689,0.00010958,2]
[323743609,1714229440672,-639.87,0.00010958,2]
[323743610,1714229440684,-500.0,0.00010958,2]
[323743611,1714229440696,-522.71157614,0.00010958,2]
[323743612,1714229440708,-500.0,0.00010958,2]
[323743613,1714229440720,-626.65,0.00010958,2]
[323743614,1714229440732,-500.0,0.00010958,2]
[323743615,1714229440745,-500.0,0.00010958,2]
[323743616,1714229440757,-500.0,0.00010958,2]
[323743617,1714229440769,-500.0,0.00010958,2]
[323743618,1714229440782,-500.0,0.00010958,2]
[323743619,1714229440795,-498.91072709,0.00010958,2]
[323743620,1714229440807,-500.0,0.00010958,2]
[323743621,1714229440819,-545.4,0.00010958,2]
[323743622,1714229440831,-506.49306106,0.00010958,2]
[323743623,1714229440844,-500.0,0.00010958,2]
[323743624,1714229440856,-587.80462065,0.00010958,2]
[323743625,1714229440868,-500.0,0.00010958,2]
[323743626,1714229440883,-500.0,0.00010958,2]
[323743627,1714229440896,-500.0,0.00010958,2]
[323743628,1714229440909,-500.0,0.00010958,2]
[323743629,1714229440922,-500.0,0.00010958,2]
[323743630,1714229440935,-637.41136421,0.00010958,2]
[323743631,1714229440949,-771.92,0.00010958,2]
[323743632,1714229440962,-504.91663509,0.00010958,2]
[323743633,1714229440975,-443.31669669,0.00010958,2]
[323743634,1714229440988,-500.0,0.00010958,2]
[323743635,1714229441000,-272.40539367,0.00010958,2]
[323743636,1714229441013,-500.0,0.00010958,2]
[323743637,1714229441025,-500.0,0.00010958,2]
[323743638,1714229441037,-500.0,0.00010958,2]
[323743639,1714229441050,-500.0,0.00010958,2]
[323743640,1714229441063,-347.28138543,0.00010958,2]
[323743641,1714229441074,-846.79,0.00010958,2]
[323743642,1714229441086,-527.46403557,0.00010958,2]
[323743643,1714229441098,-500.0,0.00010958,2]
[323743644,1714229441111,-506.84362817,0.00010958,2]
[323743645,1714229441124,-500.0,0.00010958,2]
[323743646,1714229441138,-500.0,0.00010958,2]
[323743647,1714229441151,-500.0,0.00010958,2]
[323743648,1714229441164,-501.7328087,0.00010958,2]
[323743649,1714229441178,-952.96,0.00010958,2]
[323743650,1714229441190,-503.94712571,0.00010958,2]
[323743651,1714229441204,-500.0,0.00010958,2]
[323743652,1714229441216,-500.0,0.00010958,2]
[323743653,1714229441230,-533.50248608,0.00010958,2]
[323743654,1714229441243,-500.0,0.00010958,2]
[323743655,1714229441256,-204.0103135,0.00010958,2]
[323743656,1714229441269,-502.10498198,0.00010958,2]
[323743657,1714229441281,-500.0,0.00010958,2]
[323743658,1714229441295,-500.0,0.00010958,2]
[323743659,1714229441307,-500.0,0.00010958,2]
[323743660,1714229441323,-500.0,0.00010958,2]
[323743661,1714229441336,-500.0,0.00010958,2]
[323743662,1714229441348,-500.0,0.00010958,2]
[323743663,1714229441360,-502.22659722,0.00010958,2]
[323743664,1714229441371,-500.0,0.00010958,2]
[323743665,1714229441384,-525.10537877,0.00010958,2]
[323743666,1714229441397,-500.0,0.00010958,2]
[323743667,1714229441409,-500.0,0.00010958,2]
[323743668,1714229441421,-500.0,0.00010958,2]
[323743669,1714229441433,-500.0,0.00010958,2]
[323743670,1714229441445,-1178.67,0.00010958,2]
[323743671,1714229441457,-1079.0,0.00010958,2]
[323743672,1714229441469,-500.0,0.00010958,2]
[323743673,1714229441482,-500.0,0.00010958,2]
[323743674,1714229441494,-1105.4,0.00010958,2]
[323743675,1714229441505,-500.0,0.00010958,2]
[323743676,1714229441517,-500.82018125,0.00010958,2]
[323743677,1714229441530,-1124.06,0.00010958,2]
[323743678,1714229441543,-500.0,0.00010958,2]
[323743679,1714229441555,-500.0,0.00010958,2]
[323743680,1714229441568,-500.73069095,0.00010958,2]
[323743681,1714229441580,-500.0,0.00010958,2]
[323743682,1714229441594,-500.0,0.00010958,2]
[323743683,1714229441609,-500.0,0.00010958,2]
[323743684,1714229441622,-500.0,0.00010958,2]
[323743685,1714229441638,-500.0,0.00010958,2]
[323743686,1714229441652,-660.93,0.00010958,2]
[323743687,1714229441665,-500.0,0.00010958,2]
[323743688,1714229441675,-500.0,0.00010958,2]
[323743689,1714229441686,-500.0,0.00010958,2]
[323743690,1714229441695,-500.47459637,0.00010958,2]
[323743691,1714229441706,-500.0,0.00010958,2]
[323743692,1714229441717,-500.0,0.00010958,2]
[323743693,1714229441728,-501.25950545,0.00010958,2]
[323743694,1714229441738,-500.0,0.00010958,2]
[323743695,1714229442020,-500.0,0.00010958,2]
[323743696,1714229442046,-500.0,0.00010958,2]
[323743697,1714229442059,-783.18,0.00010958,2]
[323743698,1714229442069,-547.4614891,0.00010958,2]
[323743699,1714229442078,-500.0,0.00010958,2]
[323743700,1714229442087,-677.29,0.00010958,2]
[323743701,1714229442096,-500.0,0.00010958,2]
[323743702,1714229442106,-500.0,0.00010958,2]
[323743703,1714229442116,-500.0,0.00010958,2]
[323743704,1714229442126,-502.14175874,0.00010958,2]
[323743705,1714229442138,-559.77,0.00010958,2]
[323743706,1714229442147,-315.04972339,0.00010958,2]
[323743707,1714229442157,-501.12281534,0.00010958,2]
[323743708,1714229442166,-500.0,0.00010958,2]
[323743709,1714229442176,-500.0,0.00010958,2]
[323743710,1714229442185,-96.61211003,0.00010958,2]
[323743724,1714229442661,-265.34402344,0.00010958,2]
[323743725,1714229442674,-139.22121756,0.00010958,2]
[323743726,1714229442683,-561.17,0.00010958,2]
[323743727,1714229442693,-428.68126217,0.00010958,2]
[323743728,1714229442702,-500.0,0.00010958,2]
[323743729,1714229442711,-500.0,0.00010958,2]
[323743730,1714229442720,-500.0,0.00010958,2]
[323743731,1714229442729,-500.0,0.00010958,2]
[323743732,1714229442738,-500.0,0.00010958,2]
[323743733,1714229442747,-644.51,0.00010958,2]
[323743734,1714229442758,-866.07,0.00010958,2]
[323743735,1714229442768,-589.87,0.00010958,2]
[323743736,1714229442778,-500.64941127,0.00010958,2]
[323743737,1714229442787,-520.71,0.00010958,2]
[323743738,1714229442797,-507.85,0.00010958,2]
[323743739,1714229442807,-500.0,0.00010958,2]
[323743740,1714229442818,-500.0,0.00010958,2]
[323743741,1714229442827,-500.0,0.00010958,2]
[323743742,1714229442837,-500.0,0.00010958,2]
[323743743,1714229442846,-502.69918122,0.00010958,2]
[323743744,1714229442856,-153.83714779,0.00010958,2]
[323743745,1714229442866,-500.0,0.00010958,2]
[323743746,1714229442876,-500.0,0.00010958,2]
[323743747,1714229442886,-500.0,0.00010958,2]
[323743748,1714229442896,-500.0,0.00010958,2]
[323743749,1714229442905,-500.0,0.00010958,2]
[323743750,1714229442915,-500.0,0.00010958,2]
[323743751,1714229442925,-500.0,0.00010958,2]
[323743752,1714229442935,-500.0,0.00010958,2]
[323743753,1714229442945,-500.0,0.00010958,2]
[323743754,1714229442954,-500.0,0.00010958,2]
[323743755,1714229442963,-500.0,0.00010958,2]
[323743756,1714229442974,-500.0,0.00010958,2]
[323743757,1714229442983,-500.0,0.00010958,2]
[323743758,1714229442993,-500.77,0.00010958,2]
[323743759,1714229443003,-500.65937673,0.00010958,2]
[323743760,1714229443012,-500.0,0.00010958,2]
[323743761,1714229443021,-307.92,0.00010958,2]
[323743762,1714229443030,-500.0,0.00010958,2]
[323743763,1714229443040,-500.6925584,0.00010958,2]
[323743764,1714229443049,-500.0,0.00010958,2]
[323743765,1714229443058,-500.0,0.00010958,2]
[323743766,1714229443067,-500.0,0.00010958,2]
[323743767,1714229443077,-1084.02810483,0.00010958,2]
[323743768,1714229443411,-226.85189517,0.00010958,2]
[323743769,1714229443421,-561.52447862,0.00010958,2]
[323743770,1714229443432,-202.72415508,0.00010958,2]
[323743771,1714229443470,-298.33327248,0.00010958,2]
[323743772,1714229443479,-150.15547344,0.00010958,2]
[323743773,1714229443494,-349.84452656,0.00010958,2]
[323743774,1714229443503,-500.0,0.00010958,2]
[323743775,1714229443513,-500.0,0.00010958,2]
[323743776,1714229443523,-500.0,0.00010958,2]
[323743777,1714229443531,-500.0,0.00010958,2]
[323743778,1714229443540,-209.32396298,0.00010958,2]
[323743779,1714229443581,-290.67603702,0.00010958,2]
[323743780,1714229443590,-500.0,0.00010958,2]
[323743781,1714229443599,-500.0,0.00010958,2]
[323743782,1714229443609,-500.0,0.00010958,2]
[323743783,1714229443618,-500.0,0.00010958,2]
[323743784,1714229443627,-500.0,0.00010958,2]
[323743785,1714229443638,-784.57,0.00010958,2]
[323743786,1714229443647,-299.26563616,0.00010958,2]
[323743787,1714229443658,-204.59646637,0.00010958,2]
[323743788,1714229443668,-447.07594645,0.00010958,2]
[323743789,1714229443679,-77.10405355,0.00010958,2]
[323743790,1714229443689,-282.35169253,0.00010958,2]
[323743791,1714229443700,-217.64830747,0.00010958,2]
[323743792,1714229443712,-500.0,0.00010958,2]
[323743793,1714229443722,-1101.88,0.00010958,2]
[323743794,1714229443732,-500.0,0.00010958,2]
[323743795,1714229443741,-641.03,0.00010958,2]
[323743796,1714229443750,-504.01198962,0.00010958,2]
[323743797,1714229443759,-500.0,0.00010958,2]
[323743798,1714229443769,-500.0,0.00010958,2]
[323743799,1714229443779,-507.95255865,0.00010958,2]
[323743800,1714229443788,-500.0,0.00010958,2]
[323743801,1714229443797,-500.0,0.00010958,2]
[323743802,1714229443807,-609.32811182,0.00010958,2]
[323743803,1714229443817,-500.0,0.00010958,2]
[323743804,1714229443826,-530.68,0.00010958,2]
[323743805,1714229443836,-500.0,0.00010958,2]
[323743806,1714229443845,-523.45,0.00010958,2]
[323743807,1714229443855,-500.0,0.00010958,2]
[323743808,1714229443865,-500.0,0.00010958,2]
[323743809,1714229443875,-500.0,0.00010958,2]
[323743810,1714229443886,-500.0,0.00010958,2]
[323743811,1714229443895,-500.0,0.00010958,2]
[323743812,1714229443904,-569.41,0.00010958,2]
[323743813,1714229443915,-500.0,0.00010958,2]
[323743814,1714229443926,-500.0,0.00010958,2]
[323743815,1714229443936,-500.0,0.00010958,2]
[323743816,1714229443946,-500.0,0.00010958,2]
[323743817,1714229443956,-500.0,0.00010958,2]
[323743818,1714229443966,-503.33772581,0.00010958,2]
[323743819,1714229443975,-501.27,0.00010958,2]
[323743820,1714229443985,-507.19112847,0.00010958,2]
[323743821,1714229443994,-500.0,0.00010958,2]
[323743822,1714229444003,-567.27,0.00010958,2]
[323743823,1714229444013,-500.0,0.00010958,2]
[323743824,1714229444023,-500.0,0.00010958,2]
[323743825,1714229444033,-500.0,0.00010958,2]
[323743826,1714229444043,-500.0,0.00010958,2]
[323743827,1714229444054,-500.0,0.00010958,2]
[323743828,1714229444063,-500.0,0.00010958,2]
[323743829,1714229444072,-500.0,0.00010958,2]
[323743830,1714229444081,-224.7,0.00010958,2]
[323743831,1714229444090,-500.0,0.00010958,2]
[323743832,1714229444100,-500.0,0.00010958,2]
[323743833,1714229444110,-500.0,0.00010958,2]
[323743834,1714229444120,-585.48600714,0.00010958,2]
[323743835,1714229444131,-505.12742357,0.00010958,2]
[323743836,1714229444143,-500.0,0.00010958,2]
[323743837,1714229444153,-500.0,0.00010958,2]
[323743838,1714229444162,-500.0,0.00010958,2]
[323743839,1714229444171,-500.0,0.00010958,2]
[323743840,1714229444180,-855.49,0.00010958,2]
[323743841,1714229444189,-493.11235271,0.00010958,2]
[323743842,1714229444199,-500.0,0.00010958,2]
[323743843,1714229444211,-500.0,0.00010958,2]
[323743844,1714229444223,-500.0,0.00010958,2]
[323743845,1714229444235,-501.10030957,0.00010958,2]
[323743846,1714229444246,-500.0,0.00010958,2]
[323743847,1714229444256,-500.0,0.00010958,2]
[323743848,1714229444445,-500.0,0.00010958,2]
[323743849,1714229444455,-502.4300518,0.00010958,2]
[323743850,1714229444465,-500.0,0.00010958,2]
[323743851,1714229444473,-500.0,0.00010958,2]
[323743852,1714229444482,-500.0,0.00010958,2]
[323743853,1714229444491,-500.0,0.00010958,2]
[323743854,1714229444500,-500.0,0.00010958,2]
[323743855,1714229444509,-500.73142562,0.00010958,2]
[323743856,1714229444520,-500.0,0.00010958,2]
[323743857,1714229444529,-500.0,0.00010958,2]
[323743858,1714229444539,-500.0,0.00010958,2]
[323743859,1714229444549,-500.0,0.00010958,2]
[323743860,1714229444559,-500.0,0.00010958,2]
[323743861,1714229444568,-787.54,0.00010958,2]
[323743862,1714229444578,-400.0,0.00010958,2]
[323743863,1714229444587,-502.09916427,0.00010958,2]
[323743864,1714229444595,-500.0,0.00010958,2]
[323743865,1714229444605,-500.0,0.00010958,2]
[323743866,1714229444614,-500.0,0.00010958,2]
[323743867,1714229444623,-515.47820245,0.00010958,2]
[323743868,1714229444634,-512.68814636,0.00010958,2]
[323743869,1714229444642,-500.0,0.00010958,2]
[323743870,1714229444651,-500.0,0.00010958,2]
[323743871,1714229444661,-500.0,0.00010958,2]
[323743872,1714229444670,-500.0,0.00010958,2]
[323743873,1714229444679,-500.0,0.00010958,2]
[323743874,1714229444688,-605.66,0.00010958,2]
[323743875,1714229444697,-1411.92,0.00010958,2]
[323743876,1714229444706,-557.25,0.00010958,2]
[323743877,1714229444716,-500.0,0.00010958,2]
[323743878,1714229444725,-500.0,0.00010958,2]
[323743879,1714229444734,-500.0,0.00010958,2]
[323743880,1714229444743,-151.49274619,0.00010958,2]
[323743881,1714229444752,-500.0,0.00010958,2]
[323743882,1714229444762,-500.0,0.00010958,2]
[323743883,1714229444771,-500.0,0.00010958,2]
[323743884,1714229444781,-503.42627866,0.00010958,2]
[323743885,1714229444790,-506.00706522,0.00010958,2]
[323743886,1714229444799,-500.0,0.00010958,2]
[323743887,1714229444808,-176.01989125,0.00010958,2]
[323743888,1714229444817,-1153.28,0.00010958,2]
[323743889,1714229444828,-500.0,0.00010958,2]
[323743890,1714229444837,-500.0,0.00010958,2]
[323743891,1714229444846,-500.0,0.00010958,2]
[323743892,1714229444856,-502.28885708,0.00010958,2]
[323743893,1714229444866,-500.0,0.00010958,2]
[323743894,1714229444875,-500.0,0.00010958,2]
[323743895,1714229444885,-501.06213377,0.00010958,2]
[323743896,1714229444894,-500.0,0.00010958,2]
[323743897,1714229444903,-500.50557794,0.00010958,2]
[323743898,1714229444913,-508.78929275,0.00010958,2]
[323743899,1714229444923,-500.0,0.00010958,2]
[323743900,1714229444932,-500.0,0.00010958,2]
[323743901,1714229444941,-500.0,0.00010958,2]
[323743902,1714229444951,-500.0,0.00010958,2]
[323743903,1714229444961,-500.0,0.00010958,2]
[323743904,1714229444970,-500.0,0.00010958,2]
[323743905,1714229444979,-934.18,0.00010958,2]
[323743906,1714229444987,-500.0,0.00010958,2]
[323743907,1714229444996,-500.0,0.00010958,2]
[323743908,1714229445005,-528.3886593,0.00010958,2]
[323743909,1714229445014,-500.0,0.00010958,2]
[323743910,1714229445022,-500.0,0.00010958,2]
[323743911,1714229445031,-500.0,0.00010958,2]
[323743912,1714229445040,-500.85055057,0.00010958,2]
[323743913,1714229445048,-500.0,0.00010958,2]
[323743914,1714229445057,-500.0,0.00010958,2]
[323743915,1714229445066,-500.0,0.00010958,2]
[323743916,1714229445075,-480.12807761,0.00010958,2]
[323743917,1714229445084,-153.29,0.00010958,2]
[323743918,1714229445093,-500.0,0.00010958,2]
[323743919,1714229445102,-500.0,0.00010958,2]
[323743920,1714229445112,-399.5,0.00010958,2]
[323743921,1714229445121,-381.55085473,0.00010958,2]
[323743922,1714229445130,-500.0,0.00010958,2]
[323743923,1714229445139,-500.0,0.00010958,2]
[323743924,1714229445149,-500.18699051,0.00010958,2]
[323743925,1714229445158,-500.0,0.00010958,2]
[323743926,1714229445167,-500.0,0.00010958,2]
[323743927,1714229445177,-500.0,0.00010958,2]
[323743928,1714229445186,-500.0,0.00010958,2]
[323743929,1714229445194,-500.0,0.00010958,2]
[323743930,1714229445203,-500.62886474,0.00010958,2]
[323743931,1714229445212,-541.16,0.00010958,2]
[323743932,1714229445221,-500.0,0.00010958,2]
[323743933,1714229445231,-500.0,0.00010958,2]
[323743934,1714229445240,-500.0,0.00010958,2]
[323743935,1714229445249,-502.07018919,0.00010958,2]
[323743936,1714229445258,-500.0,0.00010958,2]
[323743937,1714229445267,-500.0,0.00010958,2]
[323743938,1714229445276,-500.0,0.00010958,2]
[323743939,1714229445285,-644.09,0.00010958,2]
[323743940,1714229445294,-2613.61,0.00010958,2]
[323743941,1714229445303,-500.0,0.00010958,2]
[323743942,1714229445315,-500.0,0.00010958,2]
[323743944,1714229445325,-500.0,0.00010958,2]
[323743945,1714229445333,-500.0,0.00010958,2]
[323743947,1714229445343,-500.0,0.00010958,2]
[323743948,1714229445352,-536.57093971,0.00010958,2]
[323743949,1714229445362,-500.0,0.00010958,2]
[323743950,1714229445371,-866.54,0.00010958,2]
[323743952,1714229445381,-500.0,0.00010958,2]
[323743953,1714229445391,-500.0,0.00010958,2]
[323743954,1714229445401,-504.09227165,0.00010958,2]
[323743955,1714229445411,-500.0,0.00010958,2]
[323743956,1714229445421,-526.63,0.00010958,2]
[323743957,1714229445430,-500.0,0.00010958,2]
[323743958,1714229445438,-500.0,0.00010958,2]
[323743959,1714229445447,-500.0,0.00010958,2]
[323743960,1714229445456,-500.0,0.00010958,2]
[323743961,1714229445466,-500.0,0.00010958,2]
[323743962,1714229445474,-500.0,0.00010958,2]
[323743963,1714229445484,-500.0,0.00010958,2]
[323743964,1714229445493,-501.50502865,0.00010958,2]
[323743965,1714229445502,-871.91,0.00010958,2]
[323743966,1714229445511,-507.4,0.00010958,2]
[323743967,1714229445520,-500.0,0.00010958,2]
[323743968,1714229445529,-500.0,0.00010958,2]
[323743969,1714229445539,-158.9611675,0.00010958,2]
[323743970,1714229445547,-500.0,0.00010958,2]
[323743971,1714229445556,-500.0,0.00010958,2]
[323743972,1714229445566,-500.0,0.00010958,2]
[323743973,1714229445575,-728.51,0.00010958,2]
[323743974,1714229445584,-501.41069039,0.00010958,2]
[323743975,1714229445593,-500.0,0.00010958,2]
[323743976,1714229445602,-500.0,0.00010958,2]
[323743977,1714229445611,-500.0,0.00010958,2]
[323743978,1714229445620,-1645.42,0.00010958,2]
[323743979,1714229445629,-500.0,0.00010958,2]
[323743980,1714229445639,-869.33,0.00010958,2]
[323743981,1714229445648,-500.0,0.00010958,2]
[323743982,1714229445657,-505.89741041,0.00010958,2]
[323743983,1714229445666,-500.0,0.00010958,2]
[323743984,1714229445675,-500.0,0.00010958,2]
[323743985,1714229445684,-500.0,0.00010958,2]
[323743986,1714229445693,-500.0,0.00010958,2]
[323743987,1714229445702,-601.05,0.00010958,2]
[323743988,1714229445711,-512.04,0.00010958,2]
[323743989,1714229445720,-500.0,0.00010958,2]
[323743990,1714229445730,-500.0,0.00010958,2]
[323743991,1714229445739,-500.0,0.00010958,2]
[323743992,1714229445748,-500.0,0.00010958,2]
[323743993,1714229445757,-938.6,0.00010958,2]
[323743994,1714229445767,-500.0,0.00010958,2]
[323743995,1714229445776,-500.0,0.00010958,2]
[323743996,1714229445785,-502.87666886,0.00010958,2]
[323743997,1714229445795,-1150.5,0.00010958,2]
[323743998,1714229445804,-556.22,0.00010958,2]
[323743999,1714229445813,-500.0,0.00010958,2]
[323744000,1714229445823,-3660.66,0.00010958,2]
[323744001,1714229445832,-10188.34,0.00010958,2]
[323744002,1714229445842,-505.05559478,0.00010958,2]
[323744003,1714229445851,-500.0,0.00010958,2]
[323744004,1714229445860,-500.0,0.00010958,2]
[323744005,1714229445869,-500.0,0.00010958,2]
[323744006,1714229445878,-500.0,0.00010958,2]
[323744007,1714229445888,-500.0,0.00010958,2]
[323744008,1714229445898,-500.0,0.00010958,2]
[323744009,1714229445907,-512.40030466,0.00010958,2]
[323744010,1714229445916,-500.0,0.00010958,2]
[323744011,1714229445926,-1460.35,0.00010958,2]
[323744012,1714229445936,-500.0,0.00010958,2]
[323744013,1714229445945,-500.0,0.00010958,2]
[323744014,1714229445955,-1806.86,0.00010958,2]
[323744015,1714229445964,-500.0,0.00010958,2]
[323744016,1714229445973,-829.0,0.00010958,2]
[323744017,1714229445983,-500.0,0.00010958,2]
[323744018,1714229445992,-1364.54,0.00010958,2]
[323744019,1714229446002,-501.90108372,0.00010958,2]
[323744020,1714229446011,-500.0,0.00010958,2]
[323744021,1714229446021,-500.0,0.00010958,2]
[323744022,1714229446030,-493.57198121,0.00010958,2]
[323744023,1714229446040,-1900.35,0.00010958,2]
[323744024,1714229446049,-918.3,0.00010958,2]
[323744025,1714229446058,-500.0,0.00010958,2]
[323744026,1714229446068,-500.0,0.00010958,2]
[323744027,1714229446078,-500.0,0.00010958,2]
[323744028,1714229446087,-501.11460853,0.00010958,2]
[323744029,1714229446096,-1888.49,0.00010958,2]
[323744030,1714229446106,-520.15,0.00010958,2]
[323744031,1714229446116,-500.0,0.00010958,2]
[323744032,1714229446126,-500.0,0.00010958,2]
[323744033,1714229446136,-2149.49,0.00010958,2]
[323744034,1714229446145,-2172.29,0.00010958,2]
[323744035,1714229446156,-504.48143807,0.00010958,2]
[323744036,1714229446166,-500.0,0.00010958,2]
[323744037,1714229446176,-1243.08,0.00010958,2]
[323744038,1714229446185,-502.9814211,0.00010958,2]
[323744039,1714229446194,-150.0,0.00010958,2]
[323744040,1714229446204,-500.0,0.00010958,2]
[323744041,1714229446213,-500.0,0.00010958,2]
[323744042,1714229446222,-854.67,0.00010958,2]
[323744043,1714229446231,-500.0,0.00010958,2]
[323744044,1714229446242,-500.0,0.00010958,2]
[323744045,1714229446251,-500.0,0.00010958,2]
[323744046,1714229446261,-500.0,0.00010958,2]
[323744047,1714229446270,-500.42580791,0.00010958,2]
[323744048,1714229446279,-500.0,0.00010958,2]
[323744049,1714229446289,-500.0,0.00010958,2]
[323744050,1714229446298,-502.55917037,0.00010958,2]
[323744051,1714229446307,-500.0,0.00010958,2]
[323744052,1714229446321,-503.21377577,0.00010958,2]
[323744053,1714229446331,-500.0,0.00010958,2]
[323744054,1714229446340,-989.0,0.00010958,2]
[323744055,1714229446350,-1209.85,0.00010958,2]
[323744056,1714229446361,-500.0,0.00010958,2]
[323744057,1714229446370,-500.0,0.00010958,2]
[323744058,1714229446379,-500.0,0.00010958,2]
[323744059,1714229446390,-505.02094194,0.00010958,2]
[323744060,1714229446400,-959.82,0.00010958,2]
[323744061,1714229446410,-500.0,0.00010958,2]
[323744062,1714229446419,-500.0,0.00010958,2]
[323744063,1714229446428,-501.79973891,0.00010958,2]
[323744064,1714229446438,-530.09,0.00010958,2]
[323744065,1714229446447,-502.17233128,0.00010958,2]
[323744066,1714229446456,-503.84707921,0.00010958,2]
[323744067,1714229446466,-500.89703216,0.00010958,2]
[323744068,1714229446476,-500.0,0.00010958,2]
[323744069,1714229446485,-1008.95,0.00010958,2]
[323744070,1714229446494,-500.0,0.00010958,2]
[323744071,1714229446504,-500.0,0.00010958,2]
[323744072,1714229446513,-1459.27,0.00010958,2]
[323744073,1714229446522,-2768.71,0.00010958,2]
[323744074,1714229446531,-500.0,0.00010958,2]
[323744075,1714229446540,-500.0,0.00010958,2]
[323744076,1714229446548,-500.0,0.00010958,2]
[323744077,1714229446558,-16234.13,0.00010958,2]
[323744078,1714229446567,-500.0,0.00010958,2]
[323744079,1714229446577,-500.0,0.00010958,2]
[323744080,1714229446586,-500.0,0.00010958,2]
[323744081,1714229446596,-500.0,0.00010958,2]
[323744082,1714229446605,-500.0,0.00010958,2]
[323744083,1714229446615,-501.84646604,0.00010958,2]
[323744084,1714229446624,-2123.31,0.00010958,2]
[323744085,1714229446635,-504.7173958,0.00010958,2]
[323744086,1714229446644,-503.34425435,0.00010958,2]
[323744087,1714229446653,-6724.94,0.00010958,2]
[323744088,1714229446663,-500.0,0.00010958,2]
[323744089,1714229446673,-789.27,0.00010958,2]
[323744090,1714229446682,-500.0,0.00010958,2]
[323744091,1714229446691,-940.04,0.00010958,2]
[323744092,1714229446700,-500.0,0.00010958,2]
[323744093,1714229446709,-504.55434158,0.00010958,2]
[323744094,1714229446719,-504.77360585,0.00010958,2]
[323744095,1714229446729,-503.28257794,0.00010958,2]
[323744096,1714229446738,-166.53075264,0.00010958,2]
[323744097,1714229446747,-3390.84,0.00010958,2]
[323744098,1714229446757,-911.03,0.00010958,2]
[323744099,1714229446767,-500.0,0.00010958,2]
[323744100,1714229446776,-500.0,0.00010958,2]
[323744101,1714229446786,-1043.33,0.00010958,2]
[323744102,1714229446795,-500.0,0.00010958,2]
[323744103,1714229446804,-686.56,0.00010958,2]
[323744104,1714229446813,-500.82512992,0.00010958,2]
[323744105,1714229446824,-500.0,0.00010958,2]
[323744106,1714229446834,-801.56,0.00010958,2]